Cogmind - Beta 9.6 @@@ ROGUE MODE // 2020.04.20 @ 20:04:54 Player: Relth Result: Self-destructed Performance ------------- Evolutions (1) 500 Regions Visited (3) 600 Robots Destroyed (13) 65 Value Destroyed (250) 250 Prototype IDs (1) 20 Alien Tech Used (0) 0 Bonus (0) 0 TOTAL SCORE: 1435 Bonus ------- None Cogmind --------- Core Integrity 302/400 Matter 270/300 Energy 69/100 System Corruption 0% Temperature Cool (0) Movement Walking (150) Ox1 Location -9/Materials Parts ------- > --- POWER (1) -------- (None) > --- PROPULSION (3) --- Aluminum Leg Aluminum Leg > --- UTILITY (3) ------ Large Storage Unit Improved Sensor Array > --- WEAPON (2) ------- Improved EM Shotgun Light Assault Rifle > --- INVENTORY (10) --- Aluminum Leg Medium Storage Unit Terrain Scanner Targeting Computer Peak State ------------ > --- POWER ------------ (None) > --- PROPULSION ------- Aluminum Leg Aluminum Leg Aluminum Leg > --- UTILITY ---------- Medium Storage Unit Improved Sensor Array > --- WEAPON ----------- Improved EM Shotgun Light Assault Rifle > --- INVENTORY -------- Large Storage Unit Terrain Scanner Targeting Computer [Rating: 10] Favorites ----------- Power Light Ion Engine Engine Light Ion Engine Propulsion Aluminum Leg Leg Aluminum Leg Wheel Wheel Utility Medium Storage Unit Device Terrain Scanner Storage Medium Storage Unit Weapon Light Assault Rifle Energy Gun Small Laser Ballistic Gun Light Assault Rifle Build | -11 -10 -10 -9 ------- Run | Scr Mat Min Mat Slots Evolved 2 | . . . 2 Power . | . . . . Propulsion 1 | . . . 1 Utility 1 | . . . 1 Weapon . | . . . . Parts Attached 23 | 8 4 5 6 Power 1 | 1 . . . Engine 1 | 1 . . . Core . | . . . . Reactor . | . . . . Propulsion 9 | 5 . 2 2 Treads . | . . . . Leg 7 | 3 . 2 2 Wheel 2 | 2 . . . Hover . | . . . . Flight . | . . . . Utility 6 | . 3 . 3 Device 3 | . 1 . 2 Storage 3 | . 2 . 1 Processor . | . . . . Hackware . | . . . . Protection . | . . . . Artifact . | . . . . Weapon 7 | 2 1 3 1 Energy Gun 3 | 1 1 . 1 Energy Cannon . | . . . . Ballistic Gun 4 | 1 . 3 . Ballistic Cannon . | . . . . Launcher . | . . . . Special Weapon . | . . . . Impact Weapon . | . . . . Slashing Weapon . | . . . . Piercing Weapon . | . . . . Special Melee Weapon . | . . . . Unidentified Prototypes 1 | . . . 1 Parts Lost 3 | . . 1 2 Power . | . . . . Propulsion . | . . . . Utility 1 | . . . 1 Weapon 2 | . . 1 1 Highest Loss Streak 2 | . . 1 2 Average Slot Usage (%) 84 | . 91 85 72 Engine 2 | . 7 . . Leg 27 | . 28 28 24 Device 13 | . 12 14 15 Storage 13 | . 14 14 11 Energy Gun 7 | . 14 4 4 Ballistic Gun 19 | . 14 23 16 Naked Turns . | . . . . Heaviest Build 21 | 5 21 11 21 Greatest Support 30 | 20 20 20 30 Greatest Overweight (x) 1 | . 1 . . Average Overweight (x) . | . . . . Largest Inventory Capacity 14 | 4 14 8 10 Average Capacity 7 | 4 7 8 8 Most Carried 7 | 4 7 7 5 Average Carried 3 | 2 5 4 2 Final Capacity 10 | 4 8 8 10 Final Carried 6 | 3 6 2 4 Class Distribution -------------------- 66% | Mutant 33% | Scavenger-Mutant Dominant Class ---------------- Mutant | -10/Materials Scavenger-Mutant | -10/Mines Scavenger-Mutant | -9/Materials Resources | -11 -10 -10 -9 ----------- Run | Scr Mat Min Mat Matter Collected 451 | 287 44 71 49 Remotely . | . . . . Salvage Created 337 | 47 52 92 146 Parts 24 | 3 5 9 7 Haulers Intercepted . | . . . . Recyclers Shooed . | . . . . Parts Field Recycled . | . . . . Retrieved Matter . | . . . . Parts Self-Destructed . | . . . . Prevented . | . . . . Kills | -11 -10 -10 -9 ------- Run | Scr Mat Min Mat Combat Hostiles Destroyed 13 | 1 3 6 3 Guns 13 | 1 3 6 3 Classes Destroyed 3 | 1 1 . 1 Swarmer 9 | . 3 6 . Grunt 3 | 1 . . 2 Sentry 1 | . . . 1 Best Kill Streak 3 | 1 3 3 2 Combat Bots Only 3 | 1 3 3 2 Max Kills in Single Turn 2 | 1 1 2 1 Gunslinging 1 | . . 1 . Exploded . | . . . . Melee . | . . . . Uniques/NPCs Destroyed . | . . . . Combat | -11 -10 -10 -9 -------- Run | Scr Mat Min Mat Damage Taken 843 | 88 115 322 318 Core 184 | 11 19 56 98 Absorbed by Shields . | . . . . Core Remaining (%) 80 | 95 . 65 . Volleys Fired 41 | 7 6 16 12 Largest 2 | 2 2 2 2 Hottest 65 | 60 60 60 65 Shots Fired 80 | 14 12 32 22 Gun 80 | 14 12 32 22 Cannon . | . . . . Launcher . | . . . . Special . | . . . . Kinetic 57 | 7 6 24 20 Thermal 21 | 7 6 8 . Explosive . | . . . . Electromagnetic 2 | . . . 2 Robot Hit Streak 12 | 2 3 9 12 Robot Miss Streak 6 | 3 2 6 4 Penetration Max . | . . . . Secondary Targets 3 | . . 2 1 Max Gunslinging Chain 1 | . . 1 1 Shots Hit Robots 46 | 7 6 19 14 Core Hits 25 | 3 4 9 9 Critical Hits 1 | . . . 1 Critical Kills 1 | . . . 1 Critical Parts Destroyed . | . . . . Melee Attacks . | . . . . Impact . | . . . . Slashing . | . . . . Piercing . | . . . . Sneak Attacks . | . . . . Combat Hostiles . | . . . . Follow-up Attacks . | . . . . Damage Inflicted 409 | 70 49 145 145 Guns 408 | 70 48 145 145 Cannons . | . . . . Explosions . | . . . . Melee . | . . . . Ramming 1 | . 1 . . Kinetic 279 | 39 15 103 122 Thermal 106 | 31 33 42 . Explosive . | . . . . Electromagnetic 23 | . . . 23 Impact . | . . . . Slashing . | . . . . Piercing . | . . . . Highest Corruption . | . . . . Average Corruption . | . . . . Corruption Purged . | . . . . Overload Shots . | . . . . Overflow Damage . | . . . . Projectiles . | . . . . Explosions . | . . . . Melee . | . . . . Knockbacks . | . . . . Impact . | . . . . Kinetic . | . . . . Secondary . | . . . . Self-Inflicted Damage . | . . . . Shots . | . . . . Rammed 1 | . 1 . . Targets Rammed 1 | . 1 . . Kicked . | . . . . Crushed . | . . . . Highest Temperature 88 | 88 40 20 22 Average Temperature 25 | 50 21 8 5 Received Heat Transfer 189 | 48 . . 141 Siege Activations . | . . . . Robots Corrupted . | . . . . Combat Hostiles . | . . . . Parts Fried . | . . . . Impact Corruptions . | . . . . Robots Melted . | . . . . Combat Hostiles . | . . . . Parts Melted . | . . . . Heat Transferred 250 | 75 75 100 . Parts Sabotaged . | . . . . Parts Stolen . | . . . . Parts Stripped . | . . . . Power Chain Reactions . | . . . . Missiles Intercepted . | . . . . Alert | -11 -10 -10 -9 ------- Run | Scr Mat Min Mat Peak Influence 182 | 20 98 182 160 Average Influence 98 | 8 67 160 104 Maximum Alert Level . | . . . . Low Security (%) 100 | 100 100 100 100 Level 1 . | . . . . Level 2 . | . . . . Level 3 . | . . . . Level 4 . | . . . . Level 5 . | . . . . High Security . | . . . . Max Security . | . . . . Squads Dispatched . | . . . . Investigation . | . . . . Extermination . | . . . . Reinforcement . | . . . . Assault . | . . . . Garrison . | . . . . Intercept . | . . . . Construction Impeded . | . . . . Haulers Reinforced . | . . . . Stealth | -11 -10 -10 -9 --------- Run | Scr Mat Min Mat Distress Signals . | . . . . Communications Jammed . | . . . . Distress Signals . | . . . . Times Spotted 17 | 1 6 6 4 Peak Tracking Total 5 | 1 5 3 3 Tactical Retreats . | . . . . Traps | -11 -10 -10 -9 ------- Run | Scr Mat Min Mat Traps Triggered . | . . . . Indirectly . | . . . . Trap Hack Attempts . | . . . . Triggered . | . . . . Disarmed . | . . . . Reprogrammed . | . . . . Reused . | . . . . Traps Extracted . | . . . . Installed . | . . . . Triggered . | . . . . Machines | -11 -10 -10 -9 ---------- Run | Scr Mat Min Mat Machines Disabled . | . . . . Max in Single Turn . | . . . . Machines Sabotaged . | . . . . Garrisons Compromised . | . . . . Overloaded Fab Kills . | . . . . Fab Network Shutdowns . | . . . . Hacking | -11 -10 -10 -9 --------- Run | Scr Mat Min Mat Machines Accessed . | . . . . Terminals . | . . . . Fabricators . | . . . . Repair Stations . | . . . . Recycling Units . | . . . . Scanalyzers . | . . . . Garrison Access . | . . . . Total Hacks . | . . . . Successful . | . . . . Failed . | . . . . Catastrophic . | . . . . Database Lockouts . | . . . . Manual . | . . . . Terminals . | . . . . Fabricators . | . . . . Repair Stations . | . . . . Recycling Units . | . . . . Scanalyzers . | . . . . Garrison Access . | . . . . Terminal Hacks . | . . . . Fabricator Hacks . | . . . . Repair Station Hacks . | . . . . Recycling Unit Hacks . | . . . . Scanalyzer . | . . . . Garrison Access Hacks . | . . . . Unauthorized Hacks . | . . . . Terminals . | . . . . Fabricators . | . . . . Repair Stations . | . . . . Recycling Units . | . . . . Scanalyzers . | . . . . Garrison Access . | . . . . Data Cores Recovered . | . . . . Used . | . . . . Hacking Detections . | . . . . Full Trace Events . | . . . . Feedback Events . | . . . . Feedback Blocked . | . . . . Robot Schematics Acquired . | . . . . Robots Built . | . . . . Matter . | . . . . Time . | . . . . Total Robot Build Rating . | . . . . Part Schematics Acquired . | . . . . Parts Built . | . . . . Matter . | . . . . Time . | . . . . Total Part Build Rating . | . . . . Parts Repaired . | . . . . Time . | . . . . Parts Recycled . | . . . . Recycled Matter . | . . . . Retrieved Matter . | . . . . Retrieved Components . | . . . . Parts Scanalyzed . | . . . . Part Schematics Acquired . | . . . . Parts Damaged . | . . . . Bothacking | -11 -10 -10 -9 ------------ Run | Scr Mat Min Mat Used RIF Installer . | . . . . Robots Hacked . | . . . . Non-combat . | . . . . Combat . | . . . . Robot Hacks Applied . | . . . . Relay Couplers Released . | . . . . Robots Rewired . | . . . . Allies Hacked . | . . . . Hacks Repelled . | . . . . Allies | -11 -10 -10 -9 -------- Run | Scr Mat Min Mat Total Allies . | . . . . Largest Group . | . . . . Highest-Rated Group . | . . . . Highest-Rated Ally . | . . . . Total Orders . | . . . . Ally Attacks . | . . . . Total Damage . | . . . . Kills . | . . . . Allies Corrupted . | . . . . Allies Melted . | . . . . Intel | -11 -10 -10 -9 ------- Run | Scr Mat Min Mat Robot Analysis Total . | . . . . Derelict Logs Recovered 1 | . . 1 . Drone Launches . | . . . . Drone Recoveries . | . . . . Exploration | -11 -10 -10 -9 ------------- Run | Scr Mat Min Mat Turns Passed 950 | 160 265 357 168 Spaces Moved 622 | 133 190 215 84 Core 18 | 18 . . . Treads . | . . . . Legs 530 | 41 190 215 84 Wheels 74 | 74 . . . Hover . | . . . . Flight . | . . . . Fastest Speed 50 | 50 120 120 120 Average Speed 113 | 88 120 120 120 Slowest Speed 150 | 120 150 120 120 Overloaded Moves . | . . . . Propulsion Burnouts . | . . . . Robots Hopped . | . . . . Cave-ins Triggered . | . . . . Exploration Rate (%) 24 | 8 26 50 13 Regions Visited 3 Branch Regions 1 Pre-discovered Areas . | . . . . Known Exits Taken 1 | . . 1 . Unknown Exits Taken 2 | 1 1 . . Scrap Searched 2 | . . 2 . Spaces Dug . | . . . . Terrain Destroyed . | . . . . Melee . | . . . . Projectile . | . . . . AOE . | . . . . Actions | -11 -10 -10 -9 --------- Run | Scr Mat Min Mat Total 803 | 163 216 291 133 Wait 83 | 5 8 45 25 Move 619 | 132 189 214 84 Hop . | . . . . Pick Up 13 | 7 3 2 1 Fast Attach 11 | 4 3 . 4 Attach 12 | 4 1 5 2 Detach 12 | 1 3 4 4 Swap . | . . . . Drop 11 | 3 2 5 1 Fire 41 | 7 6 16 12 Melee . | . . . . Ram . | . . . . Kick 1 | . 1 . . Crush . | . . . . Escape Stasis . | . . . . Rewire . | . . . . Trap . | . . . . Miscellaneous . | . . . . Route ------- -11/Scrapyard -10/Materials -10/Mines (discovered 2 exits: *Mat x2) -9/Materials History --------- Turn | Location | Event 2 | -11/Scrapyard | Met Revision 17 75 | -11/Scrapyard | Discovered new exit (range 8) 161 | -11/Scrapyard | Entered Materials 301 | -10/Materials | Build established: Mutant 342 | -10/Materials | Discovered new exit (range 7) 426 | -10/Materials | Entered Mines 482 | -10/Mines | Identified exit to Materials 647 | -10/Mines | Discovered exit to Materials (range 8) 783 | -10/Mines | Entered Materials 783 | -9/Materials | Evolved 2 slots: Propulsion x1, Utility x1 862 | -9/Materials | Build established: Scavenger-Mutant 951 | -9/Materials | Self-destructed Last Messages --------------- 00864_ Y-45 Defender destroyed. 00864_ Switching to secondary target: G-47 Trooper. 00870_ Acquired 30 matter. 00872_ Acquired 2 matter. 00877_ Lgt. Assault Rifle destroyed. 00879_ Integration Mediator destroyed. 00881_ G-47 Trooper destroyed. 00882_ Acquired 1 matter. 00885_ R-06 Scavenger collects Lgt. Treads. 00888_ Acquired Prototype Energy Gun. 00888_ Identified Imp. EM Shotgun. 00889_ R-06 Scavenger collects Aluminum Leg. 00895_ Acquired 10 matter. 00897_ R-06 Scavenger collects Imp. Heat Sink. 00907_ G-34 Mercenary destroyed. 00908_ Acquired 2 matter. 00913_ Acquired Aluminum Leg. 00918_ Dropped Aluminum Leg. 00930_ R-06 Scavenger collects Heat Sink. 00934_ R-06 Scavenger collects Aluminum Leg. Map ----- +----------------------------------------------------+ | ?????????????????????????????????????????????????? | | ?????????????????????????????????????????????????? | | ?????????????????????????????????????????????????? | | ?????????????????????????????????????????????????? | | ?????????????????????????????????????????????????? | | ?????????????????????????????????????????????????? | | ?????????????????????????????????????????????????? | | ?????????????????????????????????????????????????? | | ?????????????????????????????????????????????????? | | ?????????????????????????????????????????????????? | | ?????????????????????????????????????????????????? | | ?????????????????????????????????????????????????? | | ?????????????????????????????????????????????????? | | ?????????????????????###+##??????????????????????? | | ????????????????????## ??????????????????????? | | ???????????????????? ??????????????????????? | | ????????????????????? Y ??????????????????????? | | ????????????????????? ??????????????????????? | | ?????????????????????? ??????????????????????? | | ??????????????????????#a #??????????????????????? | | ??????????????????????# #??????????????????????? | | ??????????????????????# +??????????????????????? | | ??????????????????????# #????????????##????????? | | ??????????????????????# #?????####### ##???????? | | ??????????????????????# ####### #???????? | | ??????????????????????# @ + ! #???????? | | ??????????????????????+ # #???????? | | ??????????????????????# + [ #???????? | | ??????????????????????# # [ #???????? | | ?????????????????????# """ # "" #????? | | ?????????????????????# """ # """#???? | | ?????????????????????# """ # ! S"#??? | | ?????????????????????# """ # % #?? | | ?????????????????????# #######/###?? ? | | ?????????????????????# #?????#%#??? """ ? | | ?????????????????????# #?????#%#### """ | | ?????????????????????# #?????# """ | | ?????????????????????# ####### | | ????????????????????? | | ????????????????????? "Y" | | ??????????????????????? ?"" | | ??????????????????????????########### ########## | | ????????????????????????????????????# # # | | ????????????????????????????????????# # # | | ????????????????????????????????????# # # | | ????????????????????????????????????# # """ # | | ????????????????????????????????????# # """"" # | | ????????????????????????????????????# # """"" # | | ????????????????????????????????????# + """"" # | | ????????????????????????????????????# # """ # | +----------------------------------------------------+ Best States ------------- Heat Dissipation 28 Energy Generation 10 Energy Capacity 125 Matter Stores 300 Matter Capacity 300 Sight Range 16 Robot Scan Range 13 Terrain Scan Range 14 Terrain Scan Density 10 Evasion (%) 50 Item Schematics ----------------- None Robot Schematics ------------------ None Fabricated ------------ Nothing Alien Tech Used ----------------- None Achievements -------------- None Challenges ------------ None Game ------ Seed ChargeOmegaNegator Manual? 0 Play Time 00:19:46 Cumulative 8.9 hours Start 2020.04.20 @ 19:45:36 End 2020.04.20 @ 20:04:54 Sessions 1 Manual Loads 0 Difficulty Rogue Special Mode None Game No. 5 Rogue 5 Adventurer 0 Explorer 0 Win Type - Total 0 Types 0/0/0/0/0/0/0 Lore% 7 Gallery% 10 Achievement% 8 Wizard Run 0 Options --------- ASCII 1 Keyboard 1 Movement Numpad Keybinds 0 Fullscreen 0 Font 14/Terminus Map View 76x50 Tactical HUD 1 Map Filters NONE Filters NONE Steam 1 RUN: 2833c6d2-8af2-48d3-8905-c3908dadbe7e